[Event "Late-Titled-Tuesday-Blitz-September-19-2023"]
[Site "Chess.com"]
[Date "2023.09.19"]
[Round "5"]
[White "laskakid"]
[Black "jup1978"]
[Result "1-0"]
[WhiteElo "2305"]
[BlackElo "2452"]
[TimeControl "180+1"]
[EndTime "14:54:36 PDT"]
[Termination "laskakid won on time"]

1. d4 {[%clk 0:03:00.9]} 1... Nf6 {[%clk 0:02:56.4]} 2. c4 {[%clk 0:03:00.4]}
2... g6 {[%clk 0:02:54.1]} 3. Nc3 {[%clk 0:02:59.9]} 3... Bg7 {[%clk 0:02:55]}
4. Nf3 {[%clk 0:02:58.1]} 4... d6 {[%clk 0:02:55.9]} 5. Bg5 {[%clk 0:02:57.4]}
5... O-O {[%clk 0:02:56.8]} 6. e3 {[%clk 0:02:57.2]} 6... b6 {[%clk 0:02:48]} 7.
Bd3 {[%clk 0:02:46.3]} 7... Bb7 {[%clk 0:02:47.8]} 8. O-O {[%clk 0:02:45.6]}
8... Nbd7 {[%clk 0:02:46.9]} 9. Nd2 {[%clk 0:02:37.3]} 9... h6 {[%clk
0:02:44.8]} 10. Bh4 {[%clk 0:02:36.4]} 10... a6 {[%clk 0:02:39.3]} 11. Qc2
{[%clk 0:02:32.3]} 11... e5 {[%clk 0:02:37.7]} 12. d5 {[%clk 0:02:18.4]} 12...
Nc5 {[%clk 0:02:35.9]} 13. Be2 {[%clk 0:02:17.5]} 13... a5 {[%clk 0:02:36.1]}
14. b3 {[%clk 0:02:14.6]} 14... Bc8 {[%clk 0:02:24.5]} 15. a3 {[%clk 0:01:59.5]}
15... Bd7 {[%clk 0:02:08.3]} 16. Rab1 {[%clk 0:01:50.3]} 16... Qe8 {[%clk
0:02:03.6]} 17. Kh1 {[%clk 0:01:47.5]} 17... Nh7 {[%clk 0:01:55.2]} 18. Rbe1
{[%clk 0:01:29.3]} 18... h5 {[%clk 0:01:54.8]} 19. f4 {[%clk 0:01:24.1]} 19...
exf4 {[%clk 0:01:47.5]} 20. exf4 {[%clk 0:01:20.9]} 20... Bf5 {[%clk 0:01:46.8]}
21. Qc1 {[%clk 0:00:56.9]} 21... Qe3 {[%clk 0:01:35.6]} 22. Nb5 {[%clk
0:00:50.3]} 22... Nxb3 {[%clk 0:01:20.4]} 23. Nxb3 {[%clk 0:00:47.8]} 23... Qxb3
{[%clk 0:01:21.3]} 24. Nxc7 {[%clk 0:00:36.3]} 24... Rac8 {[%clk 0:01:10.7]} 25.
Nb5 {[%clk 0:00:36.3]} 25... Rce8 {[%clk 0:01:07.4]} 26. Nxd6 {[%clk 0:00:30.7]}
26... Rxe2 {[%clk 0:01:07.8]} 27. Rxe2 {[%clk 0:00:26.3]} 27... Bd3 {[%clk
0:01:07.9]} 28. Re3 {[%clk 0:00:21.9]} 28... Qc2 {[%clk 0:00:16.2]} 29. Qxc2
{[%clk 0:00:17.2]} 29... Bxc2 {[%clk 0:00:17.1]} 30. Rc1 {[%clk 0:00:15.2]}
30... Ba4 {[%clk 0:00:13.5]} 31. Rb1 {[%clk 0:00:11.9]} 31... Bd4 {[%clk
0:00:10.4]} 32. Re4 {[%clk 0:00:10.1]} 32... Bc5 {[%clk 0:00:10.9]} 33. Ree1
{[%clk 0:00:09.3]} 33... Bxd6 {[%clk 0:00:10.2]} 34. Rxb6 {[%clk 0:00:09.3]}
34... Bxa3 {[%clk 0:00:10]} 35. Ra6 {[%clk 0:00:08.9]} 35... Bb4 {[%clk
0:00:09.9]} 36. Ra1 {[%clk 0:00:07.4]} 36... Bb3 {[%clk 0:00:09.2]} 37. c5
{[%clk 0:00:06.3]} 37... Bxd5 {[%clk 0:00:07.5]} 38. Be7 {[%clk 0:00:06.4]}
38... Re8 {[%clk 0:00:07.1]} 39. Ra7 {[%clk 0:00:06.7]} 39... Kg7 {[%clk
0:00:05.4]} 40. Rd1 {[%clk 0:00:06.2]} 40... Bc6 {[%clk 0:00:03.8]} 41. Rc7
{[%clk 0:00:06.4]} 41... Bb5 {[%clk 0:00:03.8]} 42. Bd6 {[%clk 0:00:06.1]} 42...
Nf6 {[%clk 0:00:03.6]} 43. Be5 {[%clk 0:00:06.2]} 43... Re6 {[%clk 0:00:01.2]}
44. Rd6 {[%clk 0:00:05.6]} 1-0

[Event "Late-Titled-Tuesday-Blitz-September-19-2023"]
[Site "Chess.com"]
[Date "2023.09.19"]
[Round "5"]
[White "BigAl"]
[Black "rychessmaster1"]
[Result "0-1"]
[WhiteElo "2551"]
[BlackElo "2740"]
[TimeControl "180+1"]
[EndTime "14:54:38 PDT"]
[Termination "rychessmaster1 won on time"]

1. Nf3 {[%clk 0:03:00.9]} 1... d5 {[%clk 0:02:55.4]} 2. g3 {[%clk 0:03:01.2]}
2... Nf6 {[%clk 0:02:55.5]} 3. Bg2 {[%clk 0:03:01.8]} 3... g6 {[%clk 0:02:56]}
4. O-O {[%clk 0:03:02.4]} 4... Bg7 {[%clk 0:02:56.6]} 5. d3 {[%clk 0:03:03.3]}
5... O-O {[%clk 0:02:57]} 6. Nbd2 {[%clk 0:03:04.2]} 6... d4 {[%clk 0:02:57.6]}
7. Nb3 {[%clk 0:03:03]} 7... Nc6 {[%clk 0:02:57.7]} 8. Bd2 {[%clk 0:03:00.3]}
8... e5 {[%clk 0:02:54]} 9. c3 {[%clk 0:02:59.7]} 9... Re8 {[%clk 0:02:52.4]}
10. cxd4 {[%clk 0:02:56.7]} 10... exd4 {[%clk 0:02:53.3]} 11. Rc1 {[%clk
0:02:54.8]} 11... Nd5 {[%clk 0:02:40.1]} 12. Rxc6 {[%clk 0:02:34.6]} 12... bxc6
{[%clk 0:02:38.7]} 13. Nfxd4 {[%clk 0:02:34]} 13... Bd7 {[%clk 0:02:14.2]} 14.
Qc1 {[%clk 0:02:29.6]} 14... Rb8 {[%clk 0:02:01.7]} 15. Nxc6 {[%clk 0:01:57.1]}
15... Bxc6 {[%clk 0:02:02.6]} 16. Qxc6 {[%clk 0:01:57]} 16... Nb4 {[%clk
0:01:56.8]} 17. Qc4 {[%clk 0:01:45.3]} 17... Qd6 {[%clk 0:01:51.9]} 18. a3
{[%clk 0:01:19.4]} 18... Na6 {[%clk 0:01:51.1]} 19. Bf4 {[%clk 0:00:58.8]} 19...
Be5 {[%clk 0:01:49.5]} 20. Bxe5 {[%clk 0:00:56.5]} 20... Rxe5 {[%clk 0:01:30]}
21. Bf3 {[%clk 0:00:56.2]} 21... Reb5 {[%clk 0:01:24.7]} 22. Nd4 {[%clk
0:00:52.1]} 22... Rxb2 {[%clk 0:01:25]} 23. Nc6 {[%clk 0:00:41]} 23... R8b6
{[%clk 0:01:25.4]} 24. Kg2 {[%clk 0:00:22.8]} 24... Nc5 {[%clk 0:01:12.8]} 25.
Rc1 {[%clk 0:00:21.8]} 25... Nd7 {[%clk 0:01:08]} 26. Nxa7 {[%clk 0:00:18.9]}
26... Ne5 {[%clk 0:00:58.9]} 27. Qxc7 {[%clk 0:00:19]} 27... Qxc7 {[%clk
0:00:59.6]} 28. Rxc7 {[%clk 0:00:19.2]} 28... Nxf3 {[%clk 0:01:00.3]} 29. Kxf3
{[%clk 0:00:19.7]} 29... Rf6+ {[%clk 0:01:01]} 30. Ke3 {[%clk 0:00:18.3]} 30...
Re6+ {[%clk 0:01:01.6]} 31. Kd4 {[%clk 0:00:18.8]} 31... Rbxe2 {[%clk
0:00:59.7]} 32. f4 {[%clk 0:00:18.3]} 32... Rxh2 {[%clk 0:00:59.7]} 33. Nc6
{[%clk 0:00:18.3]} 33... Ra2 {[%clk 0:00:56.9]} 34. Ne5 {[%clk 0:00:18.2]} 34...
Rxa3 {[%clk 0:00:56.3]} 35. Nxf7 {[%clk 0:00:18.5]} 35... g5 {[%clk 0:00:44.2]}
36. Nxg5 {[%clk 0:00:15.5]} 36... Rd6+ {[%clk 0:00:44.5]} 37. Ke4 {[%clk
0:00:15.9]} 37... Raxd3 {[%clk 0:00:42]} 38. g4 {[%clk 0:00:07.8]} 38... R6d4+
{[%clk 0:00:24.1]} 39. Ke5 {[%clk 0:00:07.1]} 39... Rd5+ {[%clk 0:00:24.8]} 40.
Ke4 {[%clk 0:00:06.8]} 40... h6 {[%clk 0:00:24.7]} 41. Rc8+ {[%clk 0:00:06.1]}
41... Kg7 {[%clk 0:00:24.1]} 42. Ne6+ {[%clk 0:00:06.2]} 42... Kf6 {[%clk
0:00:23.2]} 43. f5 {[%clk 0:00:07.1]} 43... Rd1 {[%clk 0:00:22.3]} 44. Rc6
{[%clk 0:00:06.9]} 44... Re5+ {[%clk 0:00:22]} 45. Kf4 {[%clk 0:00:07]} 45...
Rf1+ {[%clk 0:00:22.7]} 46. Kg3 {[%clk 0:00:07.3]} 46... Ke7 {[%clk 0:00:19.5]}
47. Nd4 {[%clk 0:00:05.1]} 47... Rd5 {[%clk 0:00:18]} 48. Ne6 {[%clk 0:00:03.5]}
48... Rd3+ {[%clk 0:00:18]} 49. Kg2 {[%clk 0:00:03.6]} 49... Re1 {[%clk
0:00:18.4]} 50. Nf4 {[%clk 0:00:02.9]} 50... Rd2+ {[%clk 0:00:18.9]} 51. Kg3
{[%clk 0:00:03]} 51... Re3+ {[%clk 0:00:19.2]} 52. Kh4 {[%clk 0:00:03.2]} 52...
Rh2+ {[%clk 0:00:19.9]} 0-1

[Event "Late-Titled-Tuesday-Blitz-September-19-2023"]
[Site "Chess.com"]
[Date "2023.09.19"]
[Round "5"]
[White "SEBAZZANO"]
[Black "Leo_C"]
[Result "0-1"]
[WhiteElo "2200"]
[BlackElo "2635"]
[TimeControl "180+1"]
[EndTime "14:54:38 PDT"]
[Termination "Leo_C won on time"]

1. d4 {[%clk 0:03:00.8]} 1... Nf6 {[%clk 0:02:59.6]} 2. Bf4 {[%clk 0:02:59.1]}
2... d5 {[%clk 0:02:59.3]} 3. e3 {[%clk 0:02:58.5]} 3... c5 {[%clk 0:02:57.1]}
4. c3 {[%clk 0:02:58.1]} 4... Nc6 {[%clk 0:02:57.3]} 5. Nd2 {[%clk 0:02:57.3]}
5... e6 {[%clk 0:02:56.5]} 6. Ngf3 {[%clk 0:02:56.7]} 6... cxd4 {[%clk
0:02:56.6]} 7. exd4 {[%clk 0:02:56.3]} 7... Nh5 {[%clk 0:02:56.7]} 8. Bg5 {[%clk
0:02:51.7]} 8... f6 {[%clk 0:02:56.9]} 9. Be3 {[%clk 0:02:42]} 9... Bd6 {[%clk
0:02:56.2]} 10. Bd3 {[%clk 0:02:09.3]} 10... Nf4 {[%clk 0:02:51.9]} 11. Bxf4
{[%clk 0:02:08.3]} 11... Bxf4 {[%clk 0:02:52.8]} 12. O-O {[%clk 0:02:06.5]}
12... O-O {[%clk 0:02:51.7]} 13. Re1 {[%clk 0:01:54]} 13... Bd7 {[%clk
0:02:30.3]} 14. Nb3 {[%clk 0:01:35.2]} 14... b6 {[%clk 0:02:28.3]} 15. Bb5
{[%clk 0:01:28.2]} 15... Rc8 {[%clk 0:02:24.7]} 16. Ba6 {[%clk 0:01:14.4]} 16...
Rc7 {[%clk 0:02:24.4]} 17. a4 {[%clk 0:01:08.1]} 17... g5 {[%clk 0:02:24.1]} 18.
a5 {[%clk 0:00:56.6]} 18... g4 {[%clk 0:02:22.6]} 19. Nfd2 {[%clk 0:00:55.7]}
19... f5 {[%clk 0:02:19.9]} 20. axb6 {[%clk 0:00:51.7]} 20... axb6 {[%clk
0:02:19.8]} 21. Bb5 {[%clk 0:00:36.2]} 21... Rf6 {[%clk 0:02:19.6]} 22. Nf1
{[%clk 0:00:32]} 22... Rh6 {[%clk 0:02:13.2]} 23. g3 {[%clk 0:00:27.9]} 23...
Bd6 {[%clk 0:02:13]} 24. Qd2 {[%clk 0:00:27.3]} 24... Rg6 {[%clk 0:02:09.6]} 25.
Ra2 {[%clk 0:00:18.9]} 25... h5 {[%clk 0:02:09.4]} 26. Rea1 {[%clk 0:00:18.4]}
26... Kh7 {[%clk 0:02:03.7]} 27. Ra8 {[%clk 0:00:16.3]} 27... Qe7 {[%clk
0:02:00.5]} 28. Bxc6 {[%clk 0:00:11.2]} 28... Bxc6 {[%clk 0:02:01.4]} 29. Rb8
{[%clk 0:00:09.3]} 29... Rb7 {[%clk 0:01:57.3]} 30. Rxb7 {[%clk 0:00:09]} 30...
Qxb7 {[%clk 0:01:58.2]} 31. Nc1 {[%clk 0:00:08.1]} 31... h4 {[%clk 0:01:56.7]}
32. Nd3 {[%clk 0:00:07.9]} 32... hxg3 {[%clk 0:01:48.4]} 33. fxg3 {[%clk
0:00:07.4]} 33... Bb5 {[%clk 0:01:46.6]} 34. Qe3 {[%clk 0:00:06.3]} 34... Bxd3
{[%clk 0:01:44.3]} 35. Qxd3 {[%clk 0:00:06.5]} 35... Kg7 {[%clk 0:01:39.3]} 36.
Qa6 {[%clk 0:00:05.5]} 36... Qc7 {[%clk 0:01:36.1]} 37. Qa8 {[%clk 0:00:04.3]}
37... Qb8 {[%clk 0:01:05.9]} 38. Ra7+ {[%clk 0:00:03.5]} 38... Kf6 {[%clk
0:01:06.4]} 39. Qxb8 {[%clk 0:00:03.5]} 39... Bxb8 {[%clk 0:01:07.3]} 40. Rb7
{[%clk 0:00:04.3]} 40... Rg8 {[%clk 0:01:05.3]} 41. Ne3 {[%clk 0:00:03.8]} 41...
f4 {[%clk 0:01:02.2]} 42. gxf4 {[%clk 0:00:03.5]} 42... Bxf4 {[%clk 0:01:01.2]}
43. Ng2 {[%clk 0:00:03.5]} 43... Bb8 {[%clk 0:00:49.9]} 44. Rxb6 {[%clk
0:00:03.1]} 44... Rh8 {[%clk 0:00:50.4]} 45. Kf2 {[%clk 0:00:01.7]} 45... Bxh2
{[%clk 0:00:48.7]} 46. Ne3 {[%clk 0:00:01.5]} 46... Kg5 {[%clk 0:00:21.3]} 47.
Rxe6 {[%clk 0:00:01.3]} 47... Bf4 {[%clk 0:00:22]} 0-1

[Event "Late-Titled-Tuesday-Blitz-September-19-2023"]
[Site "Chess.com"]
[Date "2023.09.19"]
[Round "5"]
[White "tdf98pantani"]
[Black "DTChess"]
[Result "0-1"]
[WhiteElo "2700"]
[BlackElo "2539"]
[TimeControl "180+1"]
[EndTime "14:54:39 PDT"]
[Termination "DTChess won on time"]

1. e4 {[%clk 0:02:56.3]} 1... e5 {[%clk 0:02:59.3]} 2. Nc3 {[%clk 0:02:55.1]}
2... Nc6 {[%clk 0:02:59.5]} 3. g3 {[%clk 0:02:54.9]} 3... g6 {[%clk 0:02:59.5]}
4. Bg2 {[%clk 0:02:55.3]} 4... Bg7 {[%clk 0:03:00.1]} 5. d3 {[%clk 0:02:54.5]}
5... Nge7 {[%clk 0:03:00.5]} 6. f4 {[%clk 0:02:54.1]} 6... O-O {[%clk
0:02:58.4]} 7. Nf3 {[%clk 0:02:54.2]} 7... d6 {[%clk 0:02:57.1]} 8. O-O {[%clk
0:02:53.9]} 8... h6 {[%clk 0:02:57.1]} 9. f5 {[%clk 0:02:53.5]} 9... gxf5 {[%clk
0:02:53.1]} 10. Nh4 {[%clk 0:02:53.7]} 10... f4 {[%clk 0:02:48.7]} 11. gxf4
{[%clk 0:02:53.6]} 11... exf4 {[%clk 0:02:48.8]} 12. Bxf4 {[%clk 0:02:52.8]}
12... Ng6 {[%clk 0:02:45.7]} 13. Nxg6 {[%clk 0:02:44.1]} 13... fxg6 {[%clk
0:02:45.6]} 14. Qd2 {[%clk 0:02:43]} 14... Kh7 {[%clk 0:02:42.8]} 15. Be3 {[%clk
0:02:32]} 15... Ne5 {[%clk 0:02:30.8]} 16. Rxf8 {[%clk 0:02:26.1]} 16... Qxf8
{[%clk 0:02:30.2]} 17. Rf1 {[%clk 0:02:25.3]} 17... Qe8 {[%clk 0:02:28.5]} 18.
h3 {[%clk 0:02:23.6]} 18... Be6 {[%clk 0:02:23.1]} 19. b3 {[%clk 0:01:55.2]}
19... c5 {[%clk 0:02:22.1]} 20. Ne2 {[%clk 0:01:48.2]} 20... Qd7 {[%clk
0:02:17.9]} 21. Nf4 {[%clk 0:01:47.7]} 21... Rf8 {[%clk 0:02:14.5]} 22. c3
{[%clk 0:01:47.6]} 22... g5 {[%clk 0:02:04.3]} 23. Nxe6 {[%clk 0:01:45.1]} 23...
Rxf1+ {[%clk 0:02:03.5]} 24. Kxf1 {[%clk 0:01:44.1]} 24... Qxe6 {[%clk
0:02:02.7]} 25. d4 {[%clk 0:01:42.2]} 25... cxd4 {[%clk 0:01:58.8]} 26. cxd4
{[%clk 0:01:42.4]} 26... Ng6 {[%clk 0:01:55.1]} 27. Qc2 {[%clk 0:01:28.1]} 27...
Nh4 {[%clk 0:01:41.4]} 28. e5+ {[%clk 0:01:11.5]} 28... Kg8 {[%clk 0:01:34.2]}
29. Bxb7 {[%clk 0:00:41.2]} 29... Qxh3+ {[%clk 0:01:32.8]} 30. Ke2 {[%clk
0:00:38]} 30... dxe5 {[%clk 0:01:27.5]} 31. Qc8+ {[%clk 0:00:26.4]} 31... Qxc8
{[%clk 0:01:26.8]} 32. Bxc8 {[%clk 0:00:27.3]} 32... exd4 {[%clk 0:01:27.3]} 33.
Be6+ {[%clk 0:00:25.2]} 33... Kf8 {[%clk 0:01:24.9]} 34. Bf2 {[%clk 0:00:25.8]}
34... Ng6 {[%clk 0:01:21.5]} 35. Kf3 {[%clk 0:00:22.8]} 35... Ke7 {[%clk
0:01:16.7]} 36. Bg8 {[%clk 0:00:17]} 36... Kd6 {[%clk 0:01:09.2]} 37. Ke4 {[%clk
0:00:16.3]} 37... Ne7 {[%clk 0:00:55.7]} 38. Bg3+ {[%clk 0:00:15.8]} 38... Kd7
{[%clk 0:00:55.5]} 39. Bf7 {[%clk 0:00:14.3]} 39... Bf6 {[%clk 0:00:53]} 40. b4
{[%clk 0:00:12.6]} 40... Kc6 {[%clk 0:00:53.1]} 41. a4 {[%clk 0:00:12.4]} 41...
a6 {[%clk 0:00:53.4]} 42. Be8+ {[%clk 0:00:12.7]} 42... Kb7 {[%clk 0:00:52.6]}
43. Bd6 {[%clk 0:00:08.9]} 43... Nc6 {[%clk 0:00:45.7]} 44. Kd5 {[%clk
0:00:06.6]} 44... Nd8 {[%clk 0:00:42.4]} 45. Bh5 {[%clk 0:00:06.4]} 45... d3
{[%clk 0:00:41.1]} 46. Bf3 {[%clk 0:00:06.2]} 46... d2 {[%clk 0:00:39.5]} 47.
Kc5+ {[%clk 0:00:06]} 47... Kc8 {[%clk 0:00:35.5]} 48. Kc4 {[%clk 0:00:06.2]}
48... Kd7 {[%clk 0:00:34.3]} 49. Bg3 {[%clk 0:00:04.9]} 49... Nc6 {[%clk
0:00:33.3]} 50. Bg4+ {[%clk 0:00:02.5]} 50... Ke7 {[%clk 0:00:29.5]} 51. Bd1
{[%clk 0:00:02.2]} 51... Ne5+ {[%clk 0:00:27]} 52. Kd5 {[%clk 0:00:02.3]} 52...
Nd3 {[%clk 0:00:26.4]} 0-1

[Event "Late-Titled-Tuesday-Blitz-September-19-2023"]
[Site "Chess.com"]
[Date "2023.09.19"]
[Round "5"]
[White "KejJaj"]
[Black "Chessbard1972"]
[Result "0-1"]
[WhiteElo "2211"]
[BlackElo "2369"]
[TimeControl "180+1"]
[EndTime "14:54:40 PDT"]
[Termination "Chessbard1972 won by checkmate"]

1. d4 {[%clk 0:03:00.9]} 1... Nf6 {[%clk 0:02:58.3]} 2. Bf4 {[%clk 0:03:01.5]}
2... d5 {[%clk 0:02:57.5]} 3. e3 {[%clk 0:03:01.5]} 3... c5 {[%clk 0:02:57.3]}
4. c3 {[%clk 0:03:00.8]} 4... Nc6 {[%clk 0:02:54.9]} 5. Nd2 {[%clk 0:03:00.7]}
5... Qb6 {[%clk 0:02:54.2]} 6. Qb3 {[%clk 0:02:59.3]} 6... c4 {[%clk 0:02:54.2]}
7. Qc2 {[%clk 0:02:59.5]} 7... Nh5 {[%clk 0:02:51]} 8. Bg5 {[%clk 0:02:51.8]}
8... h6 {[%clk 0:02:48]} 9. Bh4 {[%clk 0:02:52.3]} 9... g5 {[%clk 0:02:47.1]}
10. Bg3 {[%clk 0:02:52.1]} 10... Nxg3 {[%clk 0:02:46.3]} 11. hxg3 {[%clk
0:02:52.6]} 11... Bg7 {[%clk 0:02:45.9]} 12. Ngf3 {[%clk 0:02:49.2]} 12... Bg4
{[%clk 0:02:36.5]} 13. e4 {[%clk 0:02:44.6]} 13... e6 {[%clk 0:02:34.9]} 14. Be2
{[%clk 0:02:31]} 14... O-O-O {[%clk 0:02:28.7]} 15. O-O-O {[%clk 0:02:18.6]}
15... f5 {[%clk 0:02:26.5]} 16. exd5 {[%clk 0:02:04.1]} 16... exd5 {[%clk
0:02:26.1]} 17. Ng1 {[%clk 0:01:57.2]} 17... Bxe2 {[%clk 0:02:16.9]} 18. Qxf5+
{[%clk 0:01:56.5]} 18... Kb8 {[%clk 0:02:15.3]} 19. Nxe2 {[%clk 0:01:57.1]}
19... Rhf8 {[%clk 0:02:10]} 20. Qg6 {[%clk 0:01:49.5]} 20... Rxf2 {[%clk
0:02:02]} 21. Qxg7 {[%clk 0:01:46.3]} 21... Rxe2 {[%clk 0:02:01.8]} 22. Rxh6
{[%clk 0:01:42.1]} 22... Rxg2 {[%clk 0:01:56.2]} 23. Qxg5 {[%clk 0:01:38.8]}
23... Qc7 {[%clk 0:01:48.2]} 24. g4 {[%clk 0:01:32.1]} 24... Nxd4 {[%clk
0:01:39.2]} 25. cxd4 {[%clk 0:01:10.6]} 25... c3 {[%clk 0:01:37.5]} 26. bxc3
{[%clk 0:01:08.6]} 26... Qxc3+ {[%clk 0:01:36.6]} 27. Kb1 {[%clk 0:01:08.8]}
27... Rc8 {[%clk 0:01:28.8]} 28. Qe5+ {[%clk 0:00:47.6]} 28... Ka8 {[%clk
0:01:27.1]} 29. Qf5 {[%clk 0:00:47.7]} 29... a6 {[%clk 0:01:10.6]} 30. Rb6
{[%clk 0:00:34.9]} 30... Rxd2 {[%clk 0:00:58.5]} 31. Qxc8+ {[%clk 0:00:32.2]}
31... Qxc8 {[%clk 0:00:58.1]} 32. Rxd2 {[%clk 0:00:32.6]} 32... Qxg4 {[%clk
0:00:58.2]} 33. a4 {[%clk 0:00:26]} 33... Qf4 {[%clk 0:00:51.4]} 34. Rdb2 {[%clk
0:00:20.6]} 34... Qxd4 {[%clk 0:00:38.4]} 35. Rxb7 {[%clk 0:00:20.5]} 35... Qd1+
{[%clk 0:00:34.6]} 36. Ka2 {[%clk 0:00:18.5]} 36... Qxa4+ {[%clk 0:00:34.4]} 37.
Kb1 {[%clk 0:00:19]} 37... Qe4+ {[%clk 0:00:30.8]} 38. Ka1 {[%clk 0:00:17.2]}
38... Qe5 {[%clk 0:00:29.9]} 39. Ka2 {[%clk 0:00:17]} 39... d4 {[%clk
0:00:28.1]} 40. R7b6 {[%clk 0:00:15.9]} 40... Qd5+ {[%clk 0:00:25.6]} 41. Kb1
{[%clk 0:00:14.4]} 41... Ka7 {[%clk 0:00:25]} 42. R6b4 {[%clk 0:00:10]} 42... d3
{[%clk 0:00:24]} 43. Rd2 {[%clk 0:00:09.2]} 43... a5 {[%clk 0:00:23.3]} 44. Rbb2
{[%clk 0:00:06.5]} 44... a4 {[%clk 0:00:21.6]} 45. Ra2 {[%clk 0:00:06.2]} 45...
Qc4 {[%clk 0:00:20.7]} 46. Rab2 {[%clk 0:00:02.2]} 46... Ka6 {[%clk 0:00:19.6]}
47. Ra2 {[%clk 0:00:01.9]} 47... Ka5 {[%clk 0:00:19.5]} 48. Rab2 {[%clk
0:00:02.6]} 48... a3 {[%clk 0:00:19.5]} 49. Ra2 {[%clk 0:00:03.4]} 49... Ka4
{[%clk 0:00:19.6]} 50. Rh2 {[%clk 0:00:02.3]} 50... Qb3+ {[%clk 0:00:17.8]} 51.
Ka1 {[%clk 0:00:01.9]} 51... Qd1# {[%clk 0:00:17.6]} 0-1

[Event "Late-Titled-Tuesday-Blitz-September-19-2023"]
[Site "Chess.com"]
[Date "2023.09.19"]
[Round "5"]
[White "TatjanaVasilevich"]
[Black "scandalgod"]
[Result "0-1"]
[WhiteElo "2555"]
[BlackElo "2468"]
[TimeControl "180+1"]
[EndTime "14:54:43 PDT"]
[Termination "scandalgod won by checkmate"]

1. e4 {[%clk 0:03:00.9]} 1... e5 {[%clk 0:02:59.1]} 2. Nf3 {[%clk 0:03:01]} 2...
Nc6 {[%clk 0:02:58.6]} 3. Bb5 {[%clk 0:03:01.2]} 3... a6 {[%clk 0:02:58.6]} 4.
Ba4 {[%clk 0:03:01.1]} 4... d6 {[%clk 0:02:58.9]} 5. O-O {[%clk 0:02:59.6]} 5...
Bg4 {[%clk 0:02:58.4]} 6. h3 {[%clk 0:02:59.1]} 6... h5 {[%clk 0:02:58.2]} 7.
Re1 {[%clk 0:02:52.6]} 7... Qf6 {[%clk 0:02:57]} 8. Bxc6+ {[%clk 0:02:43.9]}
8... bxc6 {[%clk 0:02:55.3]} 9. d3 {[%clk 0:02:43.9]} 9... Ne7 {[%clk
0:02:51.7]} 10. Kf1 {[%clk 0:02:10.6]} 10... Bxf3 {[%clk 0:02:39]} 11. Qxf3
{[%clk 0:02:09.9]} 11... Qxf3 {[%clk 0:02:39]} 12. gxf3 {[%clk 0:02:10.2]} 12...
Ng6 {[%clk 0:02:38.4]} 13. Nc3 {[%clk 0:02:10.3]} 13... Be7 {[%clk 0:02:38.2]}
14. Ne2 {[%clk 0:02:10.4]} 14... f6 {[%clk 0:02:17.2]} 15. f4 {[%clk 0:02:08.4]}
15... Kf7 {[%clk 0:02:15.9]} 16. f5 {[%clk 0:02:04.6]} 16... Nh4 {[%clk
0:02:13.5]} 17. f4 {[%clk 0:02:01.1]} 17... Rag8 {[%clk 0:01:58.5]} 18. fxe5
{[%clk 0:02:00.2]} 18... dxe5 {[%clk 0:01:44.2]} 19. Kf2 {[%clk 0:01:01.9]}
19... g6 {[%clk 0:01:35]} 20. fxg6+ {[%clk 0:00:57]} 20... Rxg6 {[%clk
0:01:34.8]} 21. Rg1 {[%clk 0:00:46.3]} 21... Rxg1 {[%clk 0:01:34.4]} 22. Nxg1
{[%clk 0:00:47.2]} 22... Rg8 {[%clk 0:01:31.9]} 23. Be3 {[%clk 0:00:17.7]} 23...
Rg2+ {[%clk 0:01:21.5]} 24. Kf1 {[%clk 0:00:18]} 24... Rxc2 {[%clk 0:01:21.4]}
25. b3 {[%clk 0:00:18.6]} 25... Ng2 {[%clk 0:01:10]} 26. Bc1 {[%clk 0:00:10.6]}
26... Bc5 {[%clk 0:01:05.4]} 27. Ne2 {[%clk 0:00:10.8]} 27... Bd4 {[%clk
0:00:24.2]} 28. Rb1 {[%clk 0:00:06]} 28... Rxa2 {[%clk 0:00:23.2]} 29. Bh6
{[%clk 0:00:06]} 29... Nh4 {[%clk 0:00:19.8]} 30. Rc1 {[%clk 0:00:04.5]} 30...
c5 {[%clk 0:00:18.9]} 31. Nxd4 {[%clk 0:00:03.1]} 31... cxd4 {[%clk 0:00:19.8]}
32. Rxc7+ {[%clk 0:00:03.6]} 32... Kg6 {[%clk 0:00:18.8]} 33. Bc1 {[%clk
0:00:04.1]} 33... Nf3 {[%clk 0:00:18.2]} 34. b4 {[%clk 0:00:01.8]} 34... Nh2+
{[%clk 0:00:17.3]} 35. Ke1 {[%clk 0:00:02]} 35... Nf3+ {[%clk 0:00:17.8]} 36.
Kd1 {[%clk 0:00:02.9]} 36... h4 {[%clk 0:00:18]} 37. Rc6 {[%clk 0:00:03.8]}
37... Ng1 {[%clk 0:00:16.1]} 38. Rc2 {[%clk 0:00:03.9]} 38... Rxc2 {[%clk
0:00:15.4]} 39. Kxc2 {[%clk 0:00:04.8]} 39... Nxh3 {[%clk 0:00:15.8]} 40. Kd1
{[%clk 0:00:05.4]} 40... Nf4 {[%clk 0:00:16]} 41. Ke1 {[%clk 0:00:05]} 41...
Nxd3+ {[%clk 0:00:15.4]} 42. Kf1 {[%clk 0:00:05.9]} 42... Nxc1 {[%clk
0:00:16.1]} 43. Kg2 {[%clk 0:00:06.3]} 43... Nd3 {[%clk 0:00:16.3]} 44. Kh3
{[%clk 0:00:07.2]} 44... Nxb4 {[%clk 0:00:16.9]} 45. Kxh4 {[%clk 0:00:07.8]}
45... d3 {[%clk 0:00:17.2]} 46. Kg4 {[%clk 0:00:08.7]} 46... d2 {[%clk
0:00:17.5]} 47. Kf3 {[%clk 0:00:09.6]} 47... d1=Q+ {[%clk 0:00:18]} 48. Kf2
{[%clk 0:00:10.2]} 48... Qd4+ {[%clk 0:00:18.6]} 49. Kf1 {[%clk 0:00:11.1]}
49... Nd3 {[%clk 0:00:18.8]} 50. Kg2 {[%clk 0:00:12]} 50... Qf2+ {[%clk
0:00:18.9]} 51. Kh1 {[%clk 0:00:12.5]} 51... Qf3+ {[%clk 0:00:18.9]} 52. Kh2
{[%clk 0:00:12.8]} 52... Qxe4 {[%clk 0:00:19.4]} 53. Kg1 {[%clk 0:00:13.2]}
53... Nf4 {[%clk 0:00:19.7]} 54. Kh2 {[%clk 0:00:14.1]} 54... Qg2# {[%clk
0:00:19.9]} 0-1